Cogmind - Beta 12 @@@ ROGUE MODE // 2023.03.10 @ 22:49:24 Player: Howard Result: Destroyed by exploding Fusion Modulator Performance ------------- Evolutions (2) 1000 Regions Visited (9) 1800 Robots Destroyed (71) 355 Value Destroyed (3535) 3535 Prototype IDs (3) 60 Alien Tech Used (0) 0 Bonus (2902) 2902 TOTAL SCORE: 9652 Bonus ------- High Alert Combat Kills 374 Follower Combat Kills 841 Entered Garrisons 400 Used RIF Installer 1000 Aligned with FarCom 300 Friendly Fire -13 Cogmind --------- Core Integrity 0/550 Matter 190/300 Energy 100/100 System Corruption 10% Temperature Cool (12) Movement Rolling (140) Ox4 Location -8/Materials Parts ------- > --- POWER (1) -------- (None) > --- PROPULSION (2) --- Wheel > --- UTILITY (6) ------ High-capacity Storage Unit Improved Targeting Computer Relay Coupler [Swarmer] (29) Relay Coupler [Grunt] (5) Relay Coupler [Sentry] (11) Relay Coupler [Hunter] (4) > --- WEAPON (2) ------- Improved Datajack > --- INVENTORY (20) --- Improved Heat Sink Transport Network Coupler Relay Coupler [Grunt] (25) Relay Coupler [Hunter] (16) Relay Coupler [Hunter] (17) Relay Coupler [Behemoth] (8) Army-in-a-Box Longsword +1 Peak State ------------ > --- POWER ------------ Improved Deuterium Engine > --- PROPULSION ------- Light Treads Advanced Treads > --- UTILITY ---------- Improved Heat Sink High-capacity Storage Unit Improved Targeting Computer Layered Light Armor Plating Layered Light Armor Plating Relay Coupler [Grunt] > --- WEAPON ----------- Advanced Beam Rifle Longsword +1 > --- INVENTORY -------- Improved Deuterium Engine Wheel Improved Heat Sink Transport Network Coupler Layered Light Armor Plating Relay Coupler [Sentry] Relay Coupler [Sentry] Relay Coupler [Specialist] Relay Coupler [Hunter] Relay Coupler [Behemoth] Army-in-a-Box EM Pulse Cannon EM Pulse Cannon Improved Datajack [Rating: 47] Favorites ----------- Power Improved Deuterium Engine Engine Improved Deuterium Engine Power Core Light Nuclear Core Propulsion Light Treads Treads Light Treads Wheel Wheel Utility Layered Light Armor Plating Device Improved Heat Sink Storage High-capacity Storage Unit Processor Improved Targeting Computer Hackware Relay Coupler [Grunt] Protection Layered Light Armor Plating Weapon Advanced Beam Rifle Energy Gun Advanced Beam Rifle Energy Cannon EM Pulse Cannon Slashing Weapon Longsword +1 Special Melee Weapon Improved Datajack Build | -11 -10 -10 -10 -9 -8 -8 -8 -8 -8 ------- Run | Jun Mat Min Exi Min Mat Gar Mat Gar Mat Slots Evolved 4 | . . . . . 4 . . . . Power . | . . . . . . . . . . Propulsion . | . . . . . . . . . . Utility 4 | . . . . . 4 . . . . Weapon . | . . . . . . . . . . Parts Attached 106 | 4 2 2 6 2 12 14 25 32 7 Power 9 | 1 . . . 1 1 1 3 2 . Engine 7 | 1 . . . . 1 1 2 2 . Core 2 | . . . . 1 . . 1 . . Reactor . | . . . . . . . . . . Propulsion 24 | 2 . 2 . . 2 2 7 8 1 Treads 10 | 1 . . . . 2 1 1 5 . Leg . | . . . . . . . . . . Wheel 14 | 1 . 2 . . . 1 6 3 1 Hover . | . . . . . . . . . . Flight . | . . . . . . . . . . Utility 36 | 1 . . 1 1 7 5 8 11 2 Device 9 | . . . . . 3 2 4 . . Storage 2 | 1 . . 1 . . . . . . Processor 1 | . . . . 1 . . . . . Hackware 14 | . . . . . . 2 3 7 2 Protection 10 | . . . . . 4 1 1 4 . Artifact . | . . . . . . . . . . Weapon 37 | . 2 . 5 . 2 6 7 11 4 Energy Gun 12 | . 2 . 3 . 2 3 2 . . Energy Cannon 14 | . . . 1 . . 1 1 9 2 Ballistic Gun . | . . . . . . . . . . Ballistic Cannon . | . . . . . . . . . . Launcher . | . . . . . . . . . . Special Weapon . | . . . . . . . . . . Impact Weapon . | . . . . . . . . . . Slashing Weapon 3 | . . . 1 . . 1 . . 1 Piercing Weapon . | . . . . . . . . . . Special Melee Weapon 8 | . . . . . . 1 4 2 1 Unidentified Prototypes 3 | . . . 2 . 1 . . . . Parts Lost 23 | . . . . . 1 1 7 12 2 Power 4 | . . . . . . . 1 2 1 Propulsion 9 | . . . . . 1 . 3 5 . Utility 5 | . . . . . . . 2 3 . Weapon 5 | . . . . . . 1 1 2 1 Highest Loss Streak 7 | . . . . . 1 1 3 7 2 To Critical Strikes . | . . . . . . . . . . Average Slot Usage (%) 93 | . 85 85 84 85 97 99 93 94 71 Engine 8 | . 14 14 14 . 8 9 7 7 9 Treads 11 | . 14 14 14 14 10 17 11 4 . Wheel 7 | . 14 14 14 14 7 . 5 13 1 Device 6 | . . . . . 3 16 12 . . Storage 9 | . 14 14 14 14 9 9 9 9 9 Processor 7 | . . . . . 9 9 9 9 9 Hackware 7 | . . . . . . 2 9 18 25 Protection 14 | . . . . . 30 17 13 16 . Energy Gun 12 | . 28 28 27 28 18 16 3 . . Energy Cannon 3 | . . . . . . . 7 7 8 Special Melee Weapon 2 | . . . . . . . 3 7 2 Naked Turns . | . . . . . . . . . . Heaviest Build 72 | 10 14 14 49 49 70 68 72 67 56 Greatest Support 42 | 10 10 10 10 10 42 42 42 40 10 Greatest Overweight (x) 21 | . 1 1 4 4 6 6 21 15 18 Average Overweight (x) 2 | . . 1 2 4 5 1 1 2 10 Largest Inventory Capacity 20 | 8 8 8 20 20 20 20 20 20 20 Average Capacity 18 | 6 8 8 13 20 20 20 20 20 20 Most Carried 20 | 6 7 8 19 19 20 20 20 20 17 Average Carried 17 | 3 5 7 10 17 19 19 18 16 14 Final Capacity 20 | 8 8 8 20 20 20 20 20 20 20 Final Carried 20 | 6 7 8 17 19 20 20 18 17 13 Class Distribution -------------------- 51% | Mutant 48% | Bothacker-Mutant Dominant Class ---------------- Mutant | -10/Materials Mutant | -10/Mines Mutant | -10/Exiles Mutant | -9/Mines Mutant | -8/Materials Mutant | -8/Garrison Bothacker-Mutant | -8/Materials Bothacker-Mutant | -8/Garrison Bothacker-Mutant | -8/Materials Resources | -11 -10 -10 -10 -9 -8 -8 -8 -8 -8 ----------- Run | Jun Mat Min Exi Min Mat Gar Mat Gar Mat Matter Collected 1469 | 209 51 10 . 90 166 233 315 365 30 Remotely . | . . . . . . . . . . Salvage Created 2293 | . 30 115 . . 520 911 511 139 67 Parts 124 | . 1 7 . . 22 49 30 9 6 Haulers Intercepted . | . . . . . . . . . . Recyclers Shooed 2 | . . 1 . . 1 . . . . Parts Field Recycled . | . . . . . . . . . . Retrieved Matter . | . . . . . . . . . . Parts Self-Destructed . | . . . . . . . . . . Prevented . | . . . . . . . . . . Kills | -11 -10 -10 -10 -9 -8 -8 -8 -8 -8 ------- Run | Jun Mat Min Exi Min Mat Gar Mat Gar Mat Combat Hostiles Destroyed 60 | . . 6 . . 7 26 11 8 2 Guns 41 | . . 6 . . 7 26 2 . . Cannons 16 | . . . . . . . 7 7 2 AOE 1 | . . . . . . . . 1 . Classes Destroyed 7 | . 1 1 . . 3 . 2 . . Worker 6 | . 1 2 . . 1 . 1 . 1 Builder 2 | . . . . . . . 2 . . Recycler 3 | . . . . . 2 . 1 . . Swarmer 31 | . . 6 . . . 11 4 8 2 Grunt 17 | . . . . . 3 11 3 . . Duelist 1 | . . . . . . . 1 . . Sentry 11 | . . . . . 4 4 3 . . Best Kill Streak 6 | . 1 3 . . 2 5 6 3 2 Combat Bots Only 5 | . . 3 . . 2 5 5 3 2 Max Kills in Single Turn 2 | . 1 1 . . 1 2 1 2 1 Gunslinging 1 | . . . . . . 1 . . . Exploded 1 | . . . . . . . . 1 . Melee . | . . . . . . . . . . Uniques/NPCs Destroyed . | . . . . . . . . . . Combat | -11 -10 -10 -10 -9 -8 -8 -8 -8 -8 -------- Run | Jun Mat Min Exi Min Mat Gar Mat Gar Mat Damage Taken 3556 | . 107 150 . 33 403 762 679 1275 147 Core 657 | . 30 57 . . 75 88 115 196 96 Absorbed by Shields 135 | . . . . . . 27 108 . . Core Remaining (%) 82 | 100 . . . 65 . . . . . Volleys Fired 213 | . 3 20 . 2 26 70 44 44 4 Largest 2 | . 2 2 . 2 2 2 2 2 1 Hottest 141 | . 100 100 . 100 122 122 141 126 63 Shots Fired 335 | . 6 40 . 4 51 129 51 50 4 Gun 239 | . 6 40 . 4 51 129 9 . . Cannon 96 | . . . . . . . 42 50 4 Launcher . | . . . . . . . . . . Special . | . . . . . . . . . . Kinetic . | . . . . . . . . . . Thermal 282 | . 6 40 . 4 51 129 51 1 . Explosive . | . . . . . . . . . . Electromagnetic 53 | . . . . . . . . 49 4 Robot Hit Streak 19 | . 4 4 . 3 7 19 15 11 3 Robot Miss Streak 4 | . 1 4 . 1 3 3 2 2 1 Penetration Max . | . . . . . . . . . . Secondary Targets 4 | . . 1 . . . 3 . . . Max Gunslinging Chain 1 | . . 1 . . . 1 . . . Shots Hit Robots 240 | . 4 19 . 3 33 82 45 50 4 Core Hits 97 | . 2 9 . 2 14 39 18 10 3 Critical Kills 1 | . . . . . . . 1 . . Critical Parts Destroyed . | . . . . . . . . . . Critical Strikes 20 | . 1 3 . . 4 10 2 . . Burn 19 | . 1 3 . . 4 10 1 . . Meltdown 1 | . . . . . . . 1 . . Melee Attacks 58 | . . . . . . 5 15 36 2 Impact . | . . . . . . . . . . Slashing 1 | . . . . . . . . . 1 Piercing . | . . . . . . . . . . Sneak Attacks 27 | . . . . . . 5 5 16 1 Combat Hostiles 2 | . . . . . . . . 1 1 Follow-up Attacks . | . . . . . . . . . . Damage Inflicted 4061 | . 51 239 . 52 632 1580 875 560 72 Guns 2694 | . 51 239 . 52 632 1580 140 . . Cannons 1242 | . . . . . . . 735 435 72 Explosions 118 | . . . . . . . . 118 . Melee . | . . . . . . . . . . Ramming 7 | . . . . . . . . 7 . Kinetic . | . . . . . . . . . . Thermal 3547 | . 51 239 . 52 632 1580 875 118 . Explosive . | . . . . . . . . . . Electromagnetic 507 | . . . . . . . . 435 72 Impact . | . . . . . . . . . . Slashing . | . . . . . . . . . . Piercing . | . . . . . . . . . . Highest Corruption 10 | . . . . . 10 10 10 10 10 Average Corruption 9 | . . . . . 5 10 10 10 10 Corruption Purged . | . . . . . . . . . . Corruption Blocked . | . . . . . . . . . . Effects 242 | . . . . . 27 90 37 74 14 Message Errors 73 | . . . . . 6 29 9 23 6 Matter Fused 53 | . . . . . 8 17 11 13 4 Heat Flow Errors 27 | . . . . . 3 13 3 7 1 Energy Discharges 19 | . . . . . 3 6 4 6 . Parts Rejected 4 | . . . . . 1 . 2 1 . Parts Fused 1 | . . . . . . 1 . . . Data Loss (minor) 36 | . . . . . 4 12 4 14 2 Data Loss (major) 11 | . . . . . 1 4 1 5 . Misfires 7 | . . . . . . 5 . 2 . Alerts 2 | . . . . . . . 1 . 1 Misdirections 1 | . . . . . . . . 1 . Weapon Failures 8 | . . . . . 1 3 2 2 . Overload Shots . | . . . . . . . . . . Overflow Damage 6 | . . . . . . . 5 1 . Projectiles 6 | . . . . . . . 5 1 . Explosions . | . . . . . . . . . . Melee . | . . . . . . . . . . Knockbacks . | . . . . . . . . . . Impact . | . . . . . . . . . . Kinetic . | . . . . . . . . . . Secondary . | . . . . . . . . . . Self-Inflicted Damage . | . . . . . . . . . . Shots . | . . . . . . . . . . Rammed 1 | . . . . . . . . 1 . Targets Rammed 1 | . . . . . . . . 1 . Kicked . | . . . . . . . . . . Crushed . | . . . . . . . . . . Highest Temperature 460 | . 39 312 . 84 376 260 460 274 237 Average Temperature 121 | . 24 112 . 43 144 89 179 80 73 Received Heat Transfer 1199 | . 6 . . 18 261 346 256 312 . Effects 14 | . . 1 . . 3 1 8 1 . Shutdowns 4 | . . . . . 1 . 3 . . Energy Bleed 3 | . . 1 . . 1 . . 1 . Interference 3 | . . . . . 1 1 1 . . Short Circuit 2 | . . . . . . . 2 . . Damage (minor) 2 | . . . . . . . 2 . . Siege Activations . | . . . . . . . . . . Robots Corrupted . | . . . . . . . . . . Combat Hostiles . | . . . . . . . . . . Parts Fried 1 | . . . . . . . . 1 . Impact Corruptions . | . . . . . . . . . . Robots Melted 2 | . . . . . . . 2 . . Combat Hostiles 2 | . . . . . . . 2 . . Parts Melted 14 | . . 1 . . 3 6 4 . . Heat Transferred 8237 | . 222 925 . 148 1517 3492 1783 150 . Parts Sabotaged . | . . . . . . . . . . Parts Stolen . | . . . . . . . . . . Parts Stripped . | . . . . . . . . . . Power Chain Reactions 1 | . . . . . . . . 1 . Missiles Intercepted . | . . . . . . . . . . Alert | -11 -10 -10 -10 -9 -8 -8 -8 -8 -8 ------- Run | Jun Mat Min Exi Min Mat Gar Mat Gar Mat Peak Influence 1439 | . 20 152 . 141 126 1439 769 1258 615 Initial 701 | . . 7 . . 54 81 701 319 559 Average 541 | . 5 27 . 82 66 723 667 778 574 Maximum Alert Level 4 | . . . . . . 4 3 4 2 Low Security (%) 29 | 100 100 100 . 100 100 8 . . . Level 1 4 | . . . . . . 10 . 3 . Level 2 25 | . . . . . . 28 41 25 100 Level 3 33 | . . . . . . 35 58 61 . Level 4 7 | . . . . . . 16 . 9 . Level 5 . | . . . . . . . . . . High Security . | . . . . . . . . . . Max Security . | . . . . . . . . . . Squads Dispatched 3 | . 1 . . . 2 . . . . Investigation 1 | . . . . . 1 . . . . Extermination . | . . . . . . . . . . Reinforcement 2 | . 1 . . . 1 . . . . Assault . | . . . . . . . . . . Garrison . | . . . . . . . . . . Intercept . | . . . . . . . . . . Searches Triggered . | . . . . . . . . . . Construction Impeded . | . . . . . . . . . . Haulers Reinforced . | . . . . . . . . . . Active Scanning Responses . | . . . . . . . . . . Cargo Convoy Interrupts . | . . . . . . . . . . Stealth | -11 -10 -10 -10 -9 -8 -8 -8 -8 -8 --------- Run | Jun Mat Min Exi Min Mat Gar Mat Gar Mat Distress Signals 3 | . . . . . 1 . 2 . . Communications Jammed . | . . . . . . . . . . Distress Signals . | . . . . . . . . . . Times Spotted 130 | . 6 6 . 6 14 28 22 46 2 Peak Tracking Total 7 | . 7 3 . 3 3 4 6 6 2 Tactical Retreats 2 | . . . . . 2 . . . . Traps | -11 -10 -10 -10 -9 -8 -8 -8 -8 -8 ------- Run | Jun Mat Min Exi Min Mat Gar Mat Gar Mat Traps Triggered 28 | . 1 . . . 7 7 . 11 2 Indirectly . | . . . . . . . . . . Trap Hack Attempts . | . . . . . . . . . . Triggered . | . . . . . . . . . . Disarmed . | . . . . . . . . . . Reprogrammed . | . . . . . . . . . . Reused . | . . . . . . . . . . Traps Extracted . | . . . . . . . . . . Installed . | . . . . . . . . . . Triggered . | . . . . . . . . . . Machines | -11 -10 -10 -10 -9 -8 -8 -8 -8 -8 ---------- Run | Jun Mat Min Exi Min Mat Gar Mat Gar Mat Machines Disabled 14 | . . . . . 2 4 . 8 . Max in Single Turn 1 | . . . . . 1 1 . 1 . Garrison Relay 9 | . . . . . . 4 . 5 . Machines Repaired . | . . . . . . . . . . Machines Sabotaged . | . . . . . . . . . . Overloaded Fab Kills . | . . . . . . . . . . Hacking | -11 -10 -10 -10 -9 -8 -8 -8 -8 -8 --------- Run | Jun Mat Min Exi Min Mat Gar Mat Gar Mat Machines Accessed 19 | . . 1 4 . 4 3 4 3 . Terminals 13 | . . 1 . . 3 3 3 3 . Fabricators . | . . . . . . . . . . Repair Stations . | . . . . . . . . . . Recycling Units . | . . . . . . . . . . Scanalyzers . | . . . . . . . . . . Garrison Access 2 | . . . . . 1 . 1 . . Total Hacks 63 | . . 4 27 . 12 5 11 4 . Successful 38 | . . 1 27 . 4 1 4 1 . Failed 25 | . . 3 . . 8 4 7 3 . Catastrophic 6 | . . 1 . . 2 1 1 1 . Database Lockouts . | . . . . . . . . . . Manual 19 | . . 4 1 . 6 1 5 2 . Terminals 31 | . . 4 . . 10 5 8 4 . Fabricators . | . . . . . . . . . . Repair Stations . | . . . . . . . . . . Recycling Units . | . . . . . . . . . . Scanalyzers . | . . . . . . . . . . Garrison Access 5 | . . . . . 2 . 3 . . Terminal Hacks 34 | . . 1 27 . 2 1 2 1 . Record 28 | . . . 27 . . . 1 . . Open Door 2 | . . . . . . 1 . 1 . Terminal Index 1 | . . . . . 1 . . . . Unreport Threat 2 | . . 1 . . . . 1 . . Zone Layout 1 | . . . . . 1 . . . . Fabricator Hacks . | . . . . . . . . . . Repair Station Hacks . | . . . . . . . . . . Recycling Unit Hacks . | . . . . . . . . . . Scanalyzer . | . . . . . . . . . . Garrison Access Hacks 2 | . . . . . 1 . 1 . . Unlock Access 2 | . . . . . 1 . 1 . . Unauthorized Hacks 2 | . . . . . 1 . 1 . . Terminals 2 | . . . . . 1 . 1 . . Botnet 2 | . . . . . 1 . 1 . . Fabricators . | . . . . . . . . . . Repair Stations . | . . . . . . . . . . Recycling Units . | . . . . . . . . . . Scanalyzers . | . . . . . . . . . . Garrison Access . | . . . . . . . . . . Data Cores Recovered . | . . . . . . . . . . Used . | . . . . . . . . . . Hacking Detections 13 | . . 1 . . 3 3 4 2 . Full Trace Events 2 | . . . . . 1 1 . . . Feedback Events . | . . . . . . . . . . Feedback Blocked . | . . . . . . . . . . Robot Schematics Acquired . | . . . . . . . . . . Robots Built . | . . . . . . . . . . Authchips . | . . . . . . . . . . Time . | . . . . . . . . . . Total Robot Build Rating . | . . . . . . . . . . Part Schematics Acquired . | . . . . . . . . . . Parts Built . | . . . . . . . . . . Authchips . | . . . . . . . . . . Time . | . . . . . . . . . . Total Part Build Rating . | . . . . . . . . . . Parts Repaired . | . . . . . . . . . . Time . | . . . . . . . . . . Parts Recycled . | . . . . . . . . . . Recycled Matter . | . . . . . . . . . . Retrieved Matter . | . . . . . . . . . . Retrieved Components . | . . . . . . . . . . Parts Scanalyzed . | . . . . . . . . . . Part Schematics Acquired . | . . . . . . . . . . Parts Damaged . | . . . . . . . . . . Bothacking | -11 -10 -10 -10 -9 -8 -8 -8 -8 -8 ------------ Run | Jun Mat Min Exi Min Mat Gar Mat Gar Mat Used RIF Installer 2 | . . . . . . 1 . 1 . Patrol Navigation 1 | . . . . . . . . 1 . Robots Hacked 20 | . . . . . . . 5 14 1 Non-combat 1 | . . . . . . . 1 . . Combat 19 | . . . . . . . 4 14 1 Robot Hacks Applied 21 | . . . . . . . 6 14 1 parse_system 1 | . . . . . . . 1 . . find_garrison 1 | . . . . . . . 1 . . overwrite_iff 1 | . . . . . . . . 1 . streamctrl_high 2 | . . . . . . . . 2 . formatsys_high 16 | . . . . . . . 4 11 1 Relay Couplers Released 32 | . . . . . . 16 . 16 . Machine Destruction 32 | . . . . . . 16 . 16 . Attached 14 | . . . . . . 2 3 7 2 Fabnet Peak Effective % . | . . . . . . . . . . Robots Rewired 5 | . . . . . . 2 . 3 . Allies Hacked . | . . . . . . . . . . Hacks Repelled . | . . . . . . . . . . Allies | -11 -10 -10 -10 -9 -8 -8 -8 -8 -8 -------- Run | Jun Mat Min Exi Min Mat Gar Mat Gar Mat Total Allies 28 | . . 3 . . . 2 4 18 1 Largest Group 7 | . . 3 3 3 2 2 2 7 1 Highest-Rated Group 117 | . . 40 40 40 32 56 30 117 21 Highest-Rated Ally 31 | . . 16 16 16 16 31 16 29 21 Total Orders 14 | . . . . . . . . 14 . STAY 7 | . . . . . . . . 7 . FOLLOW 7 | . . . . . . . . 7 . Ally Attacks 185 | . . . . 18 21 11 27 108 . Total Damage 2822 | . . . . 217 141 222 257 1985 . Kills 34 | . . . . 6 . 2 3 23 . Allies Corrupted 1 | . . . . . 1 . . . . Allies Melted 1 | . . . . . . . . 1 . Intel | -11 -10 -10 -10 -9 -8 -8 -8 -8 -8 ------- Run | Jun Mat Min Exi Min Mat Gar Mat Gar Mat Robot Analysis Total . | . . . . . . . . . . Derelict Logs Recovered 4 | . . 2 . 2 . . . . . Drone Launches . | . . . . . . . . . . Drone Recoveries . | . . . . . . . . . . Exploration | -11 -10 -10 -10 -9 -8 -8 -8 -8 -8 ------------- Run | Jun Mat Min Exi Min Mat Gar Mat Gar Mat Turns Passed 8908 | 52 128 479 750 389 1160 2513 1022 1983 432 Spaces Moved 4693 | 52 121 427 656 268 517 952 401 1240 59 Core 33 | 5 . . . . . . 1 1 26 Treads 1227 | . . . . . 70 904 223 30 . Legs . | . . . . . . . . . . Wheels 3433 | 47 121 427 656 268 447 48 177 1209 33 Hover . | . . . . . . . . . . Flight . | . . . . . . . . . . Fastest Speed 50 | 50 80 95 95 140 140 170 105 105 155 Average Speed 158 | 77 94 95 112 140 176 228 188 130 498 Slowest Speed 1100 | 80 95 95 140 140 232 232 1100 800 950 Overloaded Moves . | . . . . . . . . . . Propulsion Burnouts . | . . . . . . . . . . Robots Hopped . | . . . . . . . . . . Cave-ins Triggered . | . . . . . . . . . . Exploration Rate (%) 48 | 3 27 73 91 58 47 63 31 84 10 Regions Visited 9 Branch Regions 3 Pre-discovered Areas 2 | . . 1 1 . . . . . . Known Exits Taken 2 | . . . . . 1 . 1 . . Unknown Exits Taken 5 | 1 1 1 1 1 . . . . . Scrap Searched 2 | . . 1 . 1 . . . . . Spaces Dug 3 | . . . . . . . 2 . 1 Terrain Destroyed 18 | . . . . . . . 12 5 1 Melee 1 | . . . . . . . . . 1 Projectile 12 | . . . . . . . 12 . . AOE 5 | . . . . . . . . 5 . Terrain Rammed . | . . . . . . . . . . Walls Destroyed . | . . . . . . . . . . Machines Disabled . | . . . . . . . . . . Actions | -11 -10 -10 -10 -9 -8 -8 -8 -8 -8 --------- Run | Jun Mat Min Exi Min Mat Gar Mat Gar Mat Total 5840 | 61 128 464 669 277 716 1161 613 1559 192 Wait 582 | . . 9 . 2 140 90 111 113 117 Move 4684 | 51 120 426 655 267 516 951 400 1239 59 Hop . | . . . . . . . . . . Pick Up 50 | 6 3 3 3 1 9 9 5 10 1 Fast Attach 33 | 4 . . 1 2 8 5 7 5 1 Attach 41 | . 2 . 3 . 1 2 10 19 4 Detach 24 | . . . 4 1 1 2 7 9 . Swap 32 | . . 2 2 . 3 7 8 8 2 Drop 34 | . . 4 1 . 12 11 4 1 1 Fire 213 | . 3 20 . 2 26 70 44 44 4 Melee 58 | . . . . . . 5 15 36 2 Ram . | . . . . . . . . . . Kick . | . . . . . . . . . . Crush 1 | . . . . . . . . 1 . Escape Stasis 73 | . . . . . . 9 . 64 . Rewire 15 | . . . . 2 . . 2 10 1 Trap . | . . . . . . . . . . Miscellaneous . | . . . . . . . . . . Route ------- -11/Junkyard -10/Materials -10/Mines (discovered 2 exits: [*Mat] / *Exi) -10/Exiles (discovered 2 exits: [*Min x2]) -9/Mines -8/Materials (discovered 2 exits: *Fac / Gar) -8/Garrison (discovered 2 exits: *Mat x2) -8/Materials -8/Garrison (discovered 4 exits: *Fac x3 / [*Mat]) -8/Materials History --------- Turn | Location | Event 15 | -11/Junkyard | Discovered new exit (range 16) 53 | -11/Junkyard | Entered Materials 163 | -10/Materials | Discovered new exit (range 16) 181 | -10/Materials | Entered Mines 182 | -10/Mines | Met a Derelict bent on vengeance 308 | -10/Mines | Build established: Mutant 555 | -10/Mines | Discovered new exit (range 14) 580 | -10/Mines | Learned location of 1 exit from Materials 615 | -10/Mines | Assisted by bots powering up and referring to "LRC-V3" 652 | -10/Mines | Deemed a non-threat by the Exiles lab entrance 652 | -10/Mines | Discovered new exit (range 5) 660 | -10/Mines | Entered Exiles 660 | -10/Exiles | Accompanied by 3 allies 673 | -10/Exiles | Discovered new exit (range 15) 684 | -10/Exiles | Met 8R-AWN 700 | -10/Exiles | Met EX-HEX 730 | -10/Exiles | Met EX-BIN 745 | -10/Exiles | Met EX-DEC 798 | -10/Exiles | Visited The Gauntlet 945 | -10/Exiles | Discovered new exit (range 11) 1117 | -10/Exiles | Aligned with FarCom system 1118 | -10/Exiles | Given EX-Vault access code 1152 | -10/Exiles | Opened EX-Vault 1160 | -10/Exiles | Found Prototype Energy Cannon 1163 | -10/Exiles | Found Prototype Slashing Weapon 1169 | -10/Exiles | Found Prototype Device 1215 | -10/Exiles | Identified Longsword +1 1225 | -10/Exiles | Warned to stay clear of 0b10 Research branches 1277 | -10/Exiles | Learned location of Zion (-7) 1358 | -10/Exiles | Identified YOLO Cannon 1410 | -10/Exiles | Stole three prototypes: YOLO Cannon, Longsword +1, Army-in-a-Box 1410 | -10/Exiles | Entered Mines 1410 | -9/Mines | Accompanied by 3 allies 1531 | -9/Mines | Learned 2 Materials zone layouts 1777 | -9/Mines | Discovered new exit (range 11) 1799 | -9/Mines | Entered Materials 1799 | -8/Materials | Accompanied by 2 allies 1799 | -8/Materials | Evolved 4 slots: Utility x4 1800 | -8/Materials | Identified exit to Factory 2944 | -8/Materials | System corruption reached 10% 2956 | -8/Materials | Identified exit to Garrison 2959 | -8/Materials | Entered Garrison 3088 | -8/Garrison | Triggered checkpoint 3207 | -8/Garrison | Garrison Relay disabled 3317 | -8/Garrison | Triggered checkpoint 3515 | -8/Garrison | Discovered new exit (range 11) 3568 | -8/Garrison | Triggered checkpoint 3587 | -8/Garrison | Garrison Relay disabled 3968 | -8/Garrison | Triggered checkpoint 4014 | -8/Garrison | Triggered checkpoint 4121 | -8/Garrison | Discovered new exit (range 11) 4437 | -8/Garrison | Triggered checkpoint 4602 | -8/Garrison | Installed Relay Interface Framework 4886 | -8/Garrison | Garrison Relay disabled 4888 | -8/Garrison | Build established: Bothacker-Mutant 5187 | -8/Garrison | Garrison Relay disabled 5252 | -8/Garrison | Triggered checkpoint 5472 | -8/Garrison | Entered Materials 6086 | -8/Materials | Lost 3 parts (2n1w) 6334 | -8/Materials | Core integrity fell below 50% 6348 | -8/Materials | Lost 3 parts (1p1n1u) 6480 | -8/Materials | Identified exit to Garrison 6494 | -8/Materials | Entered Garrison 6494 | -8/Garrison | Accompanied by 2 allies 6530 | -8/Garrison | Triggered checkpoint 6553 | -8/Garrison | Garrison Relay disabled 6638 | -8/Garrison | Triggered checkpoint 6664 | -8/Garrison | Triggered checkpoint 6690 | -8/Garrison | Lost 3 parts (1p1n1w) 6755 | -8/Garrison | Discovered exit to Factory (range 12) 6860 | -8/Garrison | Triggered checkpoint 6877 | -8/Garrison | Garrison Relay disabled 6995 | -8/Garrison | Discovered exit to Factory (range 11) 7045 | -8/Garrison | Triggered checkpoint 7388 | -8/Garrison | Triggered checkpoint 7403 | -8/Garrison | Garrison Relay disabled 7431 | -8/Garrison | Expanded RIF knowledge: Patrol Navigation 7608 | -8/Garrison | Triggered checkpoint 7676 | -8/Garrison | Triggered checkpoint 7695 | -8/Garrison | Garrison Relay disabled 7881 | -8/Garrison | Discovered exit to Factory (range 8) 8043 | -8/Garrison | Rescued a captive Derelict 8144 | -8/Garrison | Triggered checkpoint 8184 | -8/Garrison | Garrison Relay disabled 8335 | -8/Garrison | Triggered checkpoint 8393 | -8/Garrison | Discovered new exit (range 6) 8425 | -8/Garrison | Spotted B-75 Beast 8475 | -8/Garrison | Core integrity fell below 20% 8477 | -8/Garrison | Entered Materials 8508 | -8/Materials | Lost 7 parts (1p2n3u1w) 8909 | -8/Materials | Destroyed by exploding Fusion Modulator Last Messages --------------- Installing primary routines, ETC: 6. 08790_ Reactivated Commando 3a. 08792_ K-01 Serf collects debris. 08793_ K-01 Serf destroyed. 08797_ System corrupted: IFF burst signal emitted. 08840_ Acquired 30 matter. 08854_ CF QQVDLMY3C0EXX|C61Y6IILRSHB%NRB WX< 08858_ Acquired Wheel. 08873_ System corrupted: Component data lost. 08901_ Triggered EMP Trap. 08901_ A bubble of electromagnetic force engulfs the area. 08909_ Triggered EMP Trap. 08909_ A bubble of electromagnetic force engulfs the area. 08909_ Terminal disabled. 08909_ EMP Trap short circuited. 08909_ A bubble of electromagnetic force engulfs the area. 08909_ Fusion Modulator explodes. 08909_ EM Pulse Cannon destroyed. 08909_ Fusion Modulator explodes. 08909_ Imp. Ion Engine destroyed. Map ----- +----------------------------------------------------+ | | | | | | | | | | | | | | | | | | | | | | | | | | | | | | | | | | | | | | | | | | | | | ?????????????????######??????????????????? | | ????????????????# #??????????????????? | | ???????????????## #??????????????????? | | ???????????????#;@ #??????????????????? | | ???????????????## ;#?????????????????? | | ????????????????# ;#???????????####### | | ????????????????# ##???????????# # | | ????????????????# #???????###### # | | ?????????? ????# h ######### # # | | ?????????? """??# ## # # | | ?????????? """" # ## + # | | ?????????? """" + ## ##### # # | | ?????????# # ## #???###### %# | | ????Y????####+####+##### #????????# =%+ | | ?????????# ########## *=# | | ?????????# + # | | ?????????# """ ########## # | | ?????????# """ #????????# # | | ?????????# """ #????????####### | | ??????????? ????????????? | | ?????????? ??????????? | | ?????????# """ ##+####+##?????????## | | ?????????# """ #???????????????????# | | ?????????# """ #???????????????????# | | ???????????? #???????????????????# | | ???????????? +???????????????????? | | ????????????""" ##???????????????????? | | ?????????????"" ?????????????????????? | +----------------------------------------------------+ Best States ------------- Heat Dissipation 59 Energy Generation 16 Energy Capacity 290 Matter Stores 300 Matter Capacity 300 Sight Range 16 Terrain Scan Density 10 Armor Coverage 600 Evasion (%) 44 Targeting Accuracy 6 Recoil Reduction 2 Relay Coupler Types 4 Relay Coupler Value 61 Item Schematics ----------------- None Robot Schematics ------------------ None Fabricated ------------ Nothing Alien Tech Used ----------------- None Achievements -------------- None Challenges ------------ None Game ------ Seed NavigationSeismicRailgun Manual? 0 Play Time 01:04:13 Cumulative 154.0 hours Start 2023.03.10 @ 21:37:39 End 2023.03.10 @ 22:49:24 Sessions 1 Manual Loads 0 Difficulty Rogue Special Mode None Game No. 110 Rogue 108 Adventurer 2 Explorer 0 Win Type - Total 7 Types 4/0/1/2/0/0/0/0/0 Lore% 69 Gallery% 74 Achievement% 68 Wizard Run 0 Options --------- ASCII 0 Keyboard 1 Movement Numpad Keybinds 0 Fullscreen 1 Font 12/Smallcaps Map View 83x54 Tactical HUD 1 Map Filters NONE Filters NONE Steam 1 RUN: 78e434f7-a651-459c-b3fc-97b03867b41f